lending/lending_fUSD_20250121
["ID","MTS","AMOUNT","RATE_DAILY","PERIOD"]
[349794698,1737432658988,-529.55,0.00021917,2]
[349794699,1737432658997,-500.0,0.00021917,2]
[349794700,1737432659007,-500.0,0.00021917,2]
[349794701,1737432659017,-500.0,0.00021917,2]
[349794702,1737432659026,-276.22302425,0.00021917,2]
[349794703,1737432659036,-500.0,0.00021917,2]
[349794704,1737432659046,-500.0,0.00021917,2]
[349794705,1737432659056,-1216.28,0.00021917,2]
[349794706,1737432659066,-500.0,0.00021917,2]
[349794707,1737432659075,-695.84,0.00021917,2]
[349794708,1737432659084,-558.73,0.00021917,2]
[349794709,1737432659094,-750.64,0.00021917,2]
[349794710,1737432659103,-500.0,0.00021917,2]
[349794711,1737432659112,-500.0,0.00021917,2]
[349794712,1737432659122,-1200.1,0.00021917,2]
[349794713,1737432659132,-500.0,0.00021917,2]
[349794714,1737432659141,-1307.11,0.00021917,2]
[349794715,1737432659150,-231.38879289,0.00021917,2]
[349794716,1737432659159,-4000.0,0.00021918,2]
[349794717,1737432659168,-150.0,0.00021918,2]
[349794718,1737432659178,-399.88289643,0.0002192,2]
[349794719,1737432659187,-399.88289643,0.0002192,2]
[349794720,1737432659196,-399.88289643,0.0002192,2]
[349794721,1737432659206,-399.88289643,0.0002192,2]
[349794722,1737432659215,-399.88289643,0.0002192,2]
[349794723,1737432659224,-399.88289643,0.0002192,2]
[349794724,1737432659234,-399.88289643,0.0002192,2]
[349794725,1737432659243,-399.88289643,0.0002192,2]
[349794726,1737432659252,-399.88289643,0.0002192,2]
[349794727,1737432659261,-399.88289643,0.0002192,2]
[349794728,1737432659270,-399.88289643,0.0002192,2]
[349794729,1737432659279,-399.88289643,0.0002192,2]
[349794730,1737432659289,-399.88289643,0.0002192,2]
[349794731,1737432659298,-399.88289643,0.0002192,2]
[349794732,1737432659308,-399.88289643,0.0002192,2]
[349794733,1737432659317,-399.88289643,0.0002192,2]
[349794734,1737432659327,-399.88289643,0.0002192,2]
[349794735,1737432659336,-399.88289643,0.0002192,2]
[349794736,1737432659345,-399.88289643,0.0002192,2]
[349794737,1737432659354,-399.88,0.0002192,2]
[349794738,1737432659364,-933.06009168,0.0002192,2]
[349794739,1737432659374,-933.06009168,0.0002192,2]
[349794740,1737432659383,-933.06009168,0.0002192,2]
[349794741,1737432659393,-933.06009168,0.0002192,2]
[349794742,1737432659403,-933.06009168,0.0002192,2]
[349794743,1737432659412,-933.06009168,0.0002192,2]
[349794744,1737432659421,-933.06009168,0.0002192,2]
[349794745,1737432659431,-933.06009168,0.0002192,2]
[349794746,1737432659440,-933.06009168,0.0002192,2]
[349794747,1737432659449,-933.06009168,0.0002192,2]
[349794748,1737432659459,-933.06009168,0.0002192,2]
[349794749,1737432659468,-933.06009168,0.0002192,2]
[349794750,1737432659478,-933.06009168,0.0002192,2]
[349794751,1737432659487,-933.06009168,0.0002192,2]
[349794752,1737432659497,-933.06009168,0.0002192,2]
[349794753,1737432659506,-933.06009168,0.0002192,2]
[349794754,1737432659516,-933.06009168,0.0002192,2]
[349794755,1737432659525,-933.06009168,0.0002192,2]
[349794756,1737432659535,-933.06009168,0.0002192,2]
[349794757,1737432659545,-933.06,0.0002192,2]
[349794758,1737432659609,-1060.16570752,0.0002192,2]
[349794759,1737432659618,-1060.16570752,0.0002192,2]
[349794760,1737432659628,-1060.16570752,0.0002192,2]
[349794761,1737432659638,-1060.16570752,0.0002192,2]
[349794762,1737432659648,-1060.16570752,0.0002192,2]
[349794763,1737432659657,-1060.16570752,0.0002192,2]
[349794764,1737432659667,-1060.16570752,0.0002192,2]
[349794765,1737432659676,-1060.16570752,0.0002192,2]
[349794766,1737432659686,-1060.16570752,0.0002192,2]
[349794767,1737432659696,-1060.16570752,0.0002192,2]
[349794768,1737432659706,-1060.16570752,0.0002192,2]
[349794769,1737432659715,-1060.16570752,0.0002192,2]
[349794770,1737432659724,-1060.16570752,0.0002192,2]
[349794771,1737432659733,-1060.16570752,0.0002192,2]
[349794772,1737432659743,-1060.16570752,0.0002192,2]
[349794773,1737432659755,-1060.16570752,0.0002192,2]
[349794774,1737432659764,-1060.16570752,0.0002192,2]
[349794775,1737432659773,-1060.16570752,0.0002192,2]
[349794776,1737432659782,-1060.16570752,0.0002192,2]
[349794777,1737432659791,-1060.16,0.0002192,2]
[349794778,1737432659800,-2473.71998421,0.0002192,2]
[349794779,1737432659810,-2473.71998421,0.0002192,2]
[349794780,1737432659819,-2473.71998421,0.0002192,2]
[349794781,1737432659830,-2473.71998421,0.0002192,2]
[349794782,1737432659839,-2473.71998421,0.0002192,2]
[349794783,1737432659848,-2473.71998421,0.0002192,2]
[349794784,1737432659858,-2473.71998421,0.0002192,2]
[349794785,1737432659867,-2473.71998421,0.0002192,2]
[349794786,1737432659876,-2473.71998421,0.0002192,2]
[349794787,1737432659885,-2473.71998421,0.0002192,2]
[349794788,1737432659894,-2473.71998421,0.0002192,2]
[349794789,1737432659903,-2473.71998421,0.0002192,2]
[349794790,1737432659913,-2473.71998421,0.0002192,2]
[349794791,1737432659922,-2473.71998421,0.0002192,2]
[349794792,1737432659932,-2473.71998421,0.0002192,2]
[349794793,1737432659942,-2473.71998421,0.0002192,2]
[349794794,1737432659952,-2473.71998421,0.0002192,2]
[349794795,1737432659962,-2473.71998421,0.0002192,2]
[349794796,1737432659971,-2473.71998421,0.0002192,2]
[349794797,1737432659980,-2473.71,0.0002192,2]
[349794798,1737432659990,-537.75378843,0.0002192,2]
[349794799,1737432659999,-537.75378843,0.0002192,2]
[349794800,1737432660009,-537.75378843,0.0002192,2]
[349794801,1737432660018,-537.75378843,0.0002192,2]
[349794802,1737432660028,-537.75378843,0.0002192,2]
[349794803,1737432660037,-537.75378843,0.0002192,2]
[349794804,1737432660047,-537.75378843,0.0002192,2]
[349794805,1737432660057,-537.75378843,0.0002192,2]
[349794806,1737432660066,-537.75378843,0.0002192,2]
[349794807,1737432660076,-537.75378843,0.0002192,2]
[349794808,1737432660086,-537.75378843,0.0002192,2]
[349794809,1737432660095,-537.75378843,0.0002192,2]
[349794810,1737432660104,-537.75378843,0.0002192,2]
[349794811,1737432660113,-537.75378843,0.0002192,2]
[349794812,1737432660123,-537.75378843,0.0002192,2]
[349794813,1737432660132,-537.75378843,0.0002192,2]
[349794814,1737432660142,-537.75378843,0.0002192,2]
[349794815,1737432660151,-537.75378843,0.0002192,2]
[349794816,1737432660161,-537.75378843,0.0002192,2]
[349794817,1737432660170,-537.75,0.0002192,2]
[349794818,1737432660180,-1254.75883966,0.0002192,2]
[349794819,1737432660191,-1254.75883966,0.0002192,2]
[349794820,1737432660200,-1254.75883966,0.0002192,2]
[349794821,1737432660209,-1254.75883966,0.0002192,2]
[349794822,1737432660218,-1254.75883966,0.0002192,2]
[349794823,1737432660227,-1254.75883966,0.0002192,2]
[349794824,1737432660236,-1254.75883966,0.0002192,2]
[349794825,1737432660246,-1254.75883966,0.0002192,2]
[349794826,1737432660255,-1254.75883966,0.0002192,2]
[349794827,1737432660264,-1254.75883966,0.0002192,2]
[349794828,1737432660273,-1254.75883966,0.0002192,2]
[349794829,1737432660282,-1254.75883966,0.0002192,2]
[349794830,1737432660291,-1254.75883966,0.0002192,2]
[349794831,1737432660301,-1254.75883966,0.0002192,2]
[349794832,1737432660310,-1254.75883966,0.0002192,2]
[349794833,1737432660319,-1254.75883966,0.0002192,2]
[349794834,1737432660329,-1254.75883966,0.0002192,2]
[349794835,1737432660339,-1254.75883966,0.0002192,2]
[349794836,1737432660348,-1254.75883966,0.0002192,2]
[349794837,1737432660359,-1254.75,0.0002192,2]
[349794838,1737432660368,-1039.74,0.00021927,2]
[349794839,1737432660378,-39538.68693111,0.00021934,2]
[349794840,1737432660388,-150.0,0.00021959,2]
[349794841,1737432660397,-400.0,0.0002197,2]
[349794842,1737432660407,-478.27153247,0.0002197,2]
[349794843,1737432660416,-500.00076775,0.00021973,2]
[349794844,1737432660425,-150.0,0.00021973,4]
[349794845,1737432660434,-150.0,0.00021973,4]
[349794846,1737432660449,-150.60025099,0.00021973,4]
[349794847,1737432660459,-500.0,0.00021973,2]
[349794848,1737432660469,-500.0,0.00021973,2]
[349794849,1737432660478,-1670.978812,0.0002199,29]
[349794850,1737432660488,-354.593981,0.0002199,2]
[349794851,1737432660497,-200.0,0.0002199,8]
[349794852,1737432660507,-3111.8406206,0.00021997,2]
[349794853,1737432660517,-3552.0812998,0.00021997,2]
[349794854,1737432660526,-2170.7434494,0.00021997,2]
[349794855,1737432660536,-2000.0,0.00021999,2]
[349794856,1737432660545,-2000.0,0.00021999,2]
[349794857,1737432660554,-2000.0,0.00021999,2]
[349794858,1737432660563,-2000.0,0.00021999,2]
[349794859,1737432660572,-2000.0,0.00021999,2]
[349794860,1737432660581,-673.59653589,0.00021999,2]
[349794861,1737432660591,-2000.0,0.00021999,2]
[349794862,1737432660601,-500.0,0.00021999,2]
[349794863,1737432660610,-500.0,0.00021999,2]
[349794864,1737432660619,-500.0,0.00021999,2]
[349794865,1737432660629,-500.0,0.00021999,2]
[349794866,1737432660639,-500.0,0.00021999,2]
[349794867,1737432660648,-500.0,0.00021999,2]
[349794868,1737432660657,-521.21416324,0.00021999,2]
[349794869,1737432660667,-8954387.61177172,0.00022,2]
[349794870,1737432660676,-846.75653391,0.00022,2]
[349794871,1737432660686,-3550346.7432074,0.00022,2]
[349794872,1737432660909,-95019.83328615,0.00022,2]
[349794873,1737432660920,-928.79797744,0.00022,2]
[349794874,1737432660931,-5620.53291012,0.00022,2]
[349794875,1737432660944,-1007.41913745,0.00022,2]
[349794876,1737432660963,-8760.07855269,0.00022,2]
[349794877,1737432660985,-10294.59690439,0.00022,2]
[349794878,1737432661099,-500.0,0.0001945,2]
[349794879,1737432661109,-7276.4474,0.00022,2]
[349794880,1737432661193,-520.99365167,0.00019451,2]
[349794881,1737432661203,-4615.03334833,0.00022,2]
[349794882,1737432661698,-500.0,0.0001945,2]
[349794883,1737432661708,-500.0,0.0001945,2]
[349794884,1737432661717,-405.3660559,0.0001945,2]
[349794885,1737432661729,-94.6339441,0.0001945,2]
[349794886,1737432661739,-162.54634,0.0001945,2]
[349794887,1737432661753,-500.0,0.0001945,2]
[349794888,1737432661763,-500.0,0.00019451,2]
[349794889,1737432661772,-171.21512633,0.00019451,2]
[349794890,1737432661782,-500.0,0.00019451,2]
[349794891,1737432661791,-600.88287881,0.00019451,2]
[349794892,1737432661800,-500.0,0.00019724,2]
[349794893,1737432661810,-319.18344423,0.00019725,2]
[349794894,1737432661819,-500.0,0.00019725,2]
[349794895,1737432661830,-500.0,0.00019999,2]
[349794896,1737432661840,-162.54634,0.00020272,2]
[349794897,1737432661851,-500.0,0.00020273,2]
[349794898,1737432661861,-500.0,0.00020547,2]
[349794899,1737432661870,-162.54634,0.0002082,2]
[349794900,1737432661880,-500.0,0.00020821,2]
[349794901,1737432661889,-7.68775656,0.00021095,2]
[349794902,1737432661971,-485.0,0.00019451,2]
[349794903,1737432661981,-500.0,0.00019724,2]
[349794904,1737432661992,-492.31224344,0.00021095,2]
[349794905,1737432662002,-500.0,0.00021369,2]
[349794906,1737432662012,-162.54634,0.00021642,2]
[349794907,1737432662022,-500.0,0.00021643,2]
[349794908,1737432662032,-500.0,0.00021917,2]
[349794909,1737432662042,-150.0,0.00021999,2]
[349794910,1737432662051,-6154.74141656,0.00022,2]
[349794913,1737433066335,205.49,0.00010137,2]
[349794920,1737433587247,1000.0,0.00024,90]
[349794922,1737433626159,-150.0,0.00011999,2]
[349794923,1737433626181,-500.6974082,0.00012,2]
[349794924,1737433653117,-570.22312961,0.00012,2]
[349794933,1737433784997,1000.0,0.00024,90]
[349794947,1737433832369,-5023.54568336,0.000119,2]
[349794948,1737433832426,-7698.18030121,0.000119,2]
[349794949,1737433832438,-6984.30724787,0.000119,2]
[349794950,1737433832483,-1808.15090591,0.000119,2]
[349794951,1737433832495,-9282.16531001,0.000119,2]
[349794952,1737433832546,-597.72655424,0.000119,2]
[349794953,1737433832930,-647.40525532,0.000119,2]
[349794954,1737433832939,-139.03686377,0.000119,2]
[349794955,1737433832951,-1041.76047077,0.000119,2]
[349794956,1737433832963,-917.2398982,0.000119,2]
[349794957,1737433832974,-303.32828405,0.00011973,2]
[349794958,1737433832984,-500.0,0.00011973,2]
[349794959,1737433832994,-1542.18132709,0.00012,2]
[349794960,1737433833006,-19831.23000001,0.00012,2]
[349795008,1737433838557,-361385.63571067,0.00012,2]
[349795009,1737433838567,-1000.0,0.00012521,2]
[349795010,1737433838576,-1500.0,0.00013522,2]
[349795011,1737433838586,-175.49,0.000137,2]
[349795012,1737433838596,-2000.0,0.0001482,2]
[349795013,1737433838605,-164.36584673,0.00015979,2]
[349795014,1737433838614,-9076.38618509,0.00016079,2]
[349795015,1737433838624,-868.04670755,0.00016356,2]
[349795016,1737433838633,-526.64962796,0.00016379,2]
[349795017,1737433838643,-1004.3,0.00016579,2]
[349795018,1737433838652,-9076.38618508,0.00016725,2]
[349795019,1737433838661,-205.49,0.00016813,2]
[349795020,1737433838671,-206.63013761,0.000172,2]
[349795021,1737433838680,-206.63013759,0.00017317,2]
[349795022,1737433838690,-9076.38618508,0.00017372,2]
[349795023,1737433838699,-206.63013759,0.00017733,2]
[349795024,1737433838708,-164.36584672,0.00017953,2]
[349795025,1737433838718,-396.64,0.00017979,2]
[349795026,1737433838727,-530.78736236,0.00018,3]
[349795027,1737433838737,-9076.38618508,0.00018018,2]
[349795028,1737433838746,-188.45,0.00018079,2]
[349795029,1737433838755,-206.63013759,0.0001815,2]
[349795030,1737433838766,-250.0,0.00018153,2]
[349795031,1737433838775,-1830.8,0.00018175,2]
[349795032,1737433838786,-250.0,0.00018322,2]
[349795033,1737433838795,-206.63013759,0.00018567,2]
[349795034,1737433838805,-250.0,0.00018593,2]
[349795035,1737433838815,-173.71,0.00018594,2]
[349795036,1737433838824,-628.82,0.00018632,30]
[349795037,1737433838834,-9076.38618508,0.00018665,2]
[349795038,1737433838843,-18776.0,0.00018684,2]
[349795039,1737433838852,-1000.0,0.000187,2]
[349795040,1737433838861,-23900.0,0.00018717,2]
[349795041,1737433838871,-3426.95,0.00018727,2]
[349795042,1737433838880,-1004.3,0.00018843,2]
[349795043,1737433838889,-172.18,0.00018844,2]
[349795045,1737433838899,-1153.01,0.00018851,2]
[349795046,1737433838908,-206.63013759,0.00018983,2]
[349795048,1737433838917,-210.0,0.0001906,2]
[349795050,1737433838926,-40000.0,0.000191,2]
[349795052,1737433838936,-463.68,0.0001912,2]
[349795054,1737433838945,-651.2,0.00019178,2]
[349795056,1737433838954,-581.24,0.00019178,2]
[349795057,1737433838963,-500.0,0.00019178,2]
[349795058,1737433838973,-1294.73,0.00019178,2]
[349795059,1737433838983,-500.0,0.00019178,2]
[349795060,1737433838992,-902.8,0.00019178,2]
[349795061,1737433839002,-1475.03,0.00019178,2]
[349795062,1737433839011,-879.63,0.00019178,2]
[349795063,1737433839020,-1069.94,0.00019178,2]
[349795064,1737433839029,-500.0,0.00019178,2]
[349795065,1737433839039,-569.35,0.00019178,2]
[349795066,1737433839048,-500.0,0.00019178,2]
[349795067,1737433839057,-676.8,0.00019178,2]
[349795068,1737433839067,-1251.4,0.00019178,2]
[349795069,1737433839077,-1689.0,0.00019178,2]
[349795070,1737433839088,-638.28,0.00019178,2]
[349795071,1737433839097,-576.63,0.00019178,2]
[349795072,1737433839107,-500.0,0.00019178,2]
[349795073,1737433839117,-1637.61,0.00019178,2]
[349795074,1737433839126,-500.0,0.00019178,2]
[349795075,1737433839136,-500.0,0.00019178,2]
[349795076,1737433839145,-500.0,0.00019178,2]
[349795077,1737433839157,-500.0,0.00019178,2]
[349795078,1737433839170,-500.0,0.00019178,2]
[349795079,1737433839181,-795.98,0.00019178,2]
[349795080,1737433839191,-500.0,0.00019178,2]
[349795081,1737433839200,-500.0,0.00019178,2]
[349795082,1737433839210,-500.0,0.00019178,2]
[349795083,1737433839219,-500.0,0.00019178,2]
[349795084,1737433839231,-500.0,0.00019178,2]
[349795085,1737433839241,-640.49868728,0.00019178,2]
[349795086,1737433839250,-1431.77,0.00019178,2]
[349795087,1737433839259,-500.0,0.00019178,2]
[349795088,1737433839269,-500.0,0.00019178,2]
[349795089,1737433839278,-500.0,0.00019178,2]
[349795090,1737433839288,-507.20969481,0.00019178,2]
[349795091,1737433839298,-500.0,0.00019178,2]
[349795092,1737433839307,-500.0,0.00019178,2]
[349795093,1737433839317,-500.0,0.00019178,2]
[349795094,1737433839327,-296.86639701,0.00019178,2]
[349795095,1737433839336,-8040.56,0.00019201,2]
[349795096,1737433839538,-9076.38618508,0.00019311,2]
[349795097,1737433839548,-361.59619366,0.00019344,2]
[349795098,1737433839559,-206.63013759,0.000194,2]
[349795099,1737433839568,-210.0,0.0001943,2]
[349795100,1737433839577,-681.797,0.00019449,2]
[349795101,1737433839587,-310.33894258,0.0001945,2]
[349795102,1737433839597,-539.21910221,0.0001945,2]
[349795103,1737433839607,-500.0,0.0001945,2]
[349795104,1737433839616,-500.0,0.0001945,2]
[349795105,1737433839627,-500.0,0.0001945,2]
[349795106,1737433839636,-500.0,0.0001945,2]
[349795107,1737433839646,-500.0,0.0001945,2]
[349795108,1737433839656,-500.0,0.0001945,2]
[349795109,1737433839666,-500.0,0.0001945,2]
[349795110,1737433839675,-500.0,0.0001945,2]
[349795111,1737433839685,-500.0,0.0001945,2]
[349795112,1737433839694,-500.0,0.0001945,2]
[349795113,1737433839704,-500.0,0.0001945,2]
[349795114,1737433839714,-500.0,0.0001945,2]
[349795115,1737433839723,-500.0,0.0001945,2]
[349795116,1737433839735,-500.0,0.0001945,2]
[349795117,1737433839744,-500.0,0.0001945,2]
[349795118,1737433839754,-500.0,0.0001945,2]
[349795119,1737433839764,-510.64113021,0.0001945,2]
[349795120,1737433839773,-517.57930133,0.0001945,2]
[349795121,1737433839784,-500.0,0.0001945,2]
[349795122,1737433839794,-500.0,0.0001945,2]
[349795123,1737433839803,-500.0,0.0001945,2]
[349795124,1737433839813,-500.0,0.0001945,2]
[349795125,1737433839823,-519.76646253,0.0001945,2]
[349795126,1737433839832,-626.71334353,0.0001945,2]
[349795127,1737433839842,-500.0,0.0001945,2]
[349795128,1737433839851,-500.0,0.0001945,2]
[349795129,1737433839861,-500.0,0.0001945,2]
[349795130,1737433839871,-500.0,0.0001945,2]
[349795131,1737433839880,-500.0,0.0001945,2]
[349795132,1737433839890,-207.63022035,0.0001945,2]
[349795133,1737433839901,-500.0,0.0001945,2]
[349795134,1737433839911,-500.0,0.0001945,2]
[349795135,1737433839920,-500.0,0.0001945,2]
[349795136,1737433839930,-500.0,0.0001945,2]
[349795137,1737433839940,-500.0,0.0001945,2]
[349795138,1737433839950,-516.93864431,0.0001945,2]
[349795139,1737433839960,-500.0,0.0001945,2]
[349795140,1737433839970,-500.0,0.0001945,2]
[349795141,1737433839982,-500.0,0.0001945,2]
[349795142,1737433839992,-515.63698826,0.0001945,2]
[349795143,1737433840001,-500.0,0.0001945,2]
[349795144,1737433840011,-512.86236518,0.0001945,2]
[349795145,1737433840021,-500.0,0.0001945,2]
[349795146,1737433840031,-500.0,0.0001945,2]
[349795147,1737433840041,-500.0,0.0001945,2]
[349795148,1737433840051,-252.80674781,0.00019451,2]
[349795149,1737433840060,-187.22228015,0.00019451,2]
[349795150,1737433840070,-500.0,0.00019451,2]
[349795151,1737433840080,-504.32198758,0.00019451,2]
[349795152,1737433840090,-500.0,0.00019451,2]
[349795153,1737433840100,-500.0,0.00019451,2]
[349795154,1737433840110,-509.27591214,0.00019451,2]
[349795155,1737433840121,-506.22100151,0.00019451,2]
[349795156,1737433840131,-500.0,0.00019451,2]
[349795157,1737433840140,-504.90046825,0.00019451,2]
[349795158,1737433840149,-506.99462568,0.00019451,2]
[349795159,1737433840159,-511.55272918,0.00019451,2]
[349795160,1737433840169,-500.0,0.00019451,2]
[349795161,1737433840180,-506.12092519,0.00019451,2]
[349795162,1737433840190,-515.53077759,0.00019451,2]
[349795163,1737433840200,-510.36807206,0.00019451,2]
[349795164,1737433840210,-500.0,0.00019451,2]
[349795165,1737433840220,-405.90701827,0.00019451,2]
[349795166,1737433840232,-500.0,0.00019451,2]
[349795167,1737433840242,-500.0,0.00019451,2]
[349795168,1737433840252,-500.0,0.00019451,2]
[349795169,1737433840262,-500.0,0.00019451,2]
[349795170,1737433840271,-300.0,0.00019451,2]
[349795171,1737433840281,-566.64,0.00019451,2]
[349795172,1737433840291,-500.0,0.00019451,2]
[349795173,1737433840300,-500.0,0.00019451,2]
[349795174,1737433840309,-621.54448458,0.00019451,2]
[349795175,1737433840319,-500.0,0.00019451,2]
[349795176,1737433840328,-500.0,0.00019451,2]
[349795177,1737433840337,-500.0,0.00019451,2]
[349795178,1737433840347,-500.0,0.00019451,2]
[349795179,1737433840356,-500.0,0.00019451,2]
[349795180,1737433840366,-500.0,0.00019451,2]
[349795181,1737433840375,-1334.1,0.00019451,2]
[349795182,1737433840386,-500.0,0.00019451,2]
[349795183,1737433840396,-576.6,0.00019451,2]
[349795184,1737433840407,-569.97997013,0.00019451,2]
[349795185,1737433840416,-500.0,0.00019451,2]
[349795186,1737433840426,-500.0,0.00019451,2]
[349795187,1737433840435,-500.0,0.00019451,2]
[349795188,1737433840444,-528.70592296,0.00019451,2]
[349795189,1737433840454,-500.0,0.00019451,2]
[349795190,1737433840464,-231.38879289,0.00019451,2]
[349795191,1737433840473,-217.78171462,0.00019451,2]
[349795192,1737433840484,-500.0,0.00019451,2]
[349795193,1737433840494,-651.2,0.00019452,2]
[349795194,1737433840504,-581.24,0.00019452,2]
[349795195,1737433840514,-230.22816748,0.00019452,2]
[349795196,1737433840524,-1294.73,0.00019452,2]
[349795197,1737433840533,-500.0,0.00019452,2]
[349795198,1737433840543,-902.8,0.00019452,2]
[349795199,1737433840552,-1475.03,0.00019452,2]
[349795200,1737433840561,-879.63,0.00019452,2]
[349795201,1737433840571,-1069.94,0.00019452,2]
[349795202,1737433840580,-500.0,0.00019452,2]
[349795203,1737433840590,-569.35,0.00019452,2]
[349795204,1737433840599,-500.0,0.00019452,2]
[349795205,1737433840609,-676.8,0.00019452,2]
[349795206,1737433840619,-1251.4,0.00019452,2]
[349795207,1737433840628,-1689.0,0.00019452,2]
[349795208,1737433840637,-638.28,0.00019452,2]
[349795209,1737433840647,-576.63,0.00019452,2]
[349795210,1737433840656,-548.96,0.00019452,2]
[349795211,1737433840666,-1637.61,0.00019452,2]
[349795212,1737433840676,-500.0,0.00019452,2]
[349795213,1737433840685,-500.0,0.00019452,2]
[349795214,1737433840695,-500.0,0.00019452,2]
[349795215,1737433840704,-510.73025092,0.00019452,2]
[349795216,1737433840714,-500.0,0.00019452,2]
[349795217,1737433840724,-795.98,0.00019452,2]
[349795218,1737433840736,-500.0,0.00019452,2]
[349795219,1737433840746,-500.0,0.00019452,2]
[349795220,1737433840756,-1431.77,0.00019452,2]
[349795221,1737433840768,-500.0,0.00019452,2]
[349795222,1737433840778,-500.0,0.00019452,2]
[349795223,1737433840790,-153.40837092,0.00019473,2]
[349795224,1737433840801,-500.75208374,0.00019473,2]
[349795225,1737433840811,-50000.0,0.000195,2]
[349795226,1737433840822,-1095.65,0.00019701,2]
[349795227,1737433840833,-500.0,0.00019722,2]
[349795228,1737433840843,-659.87,0.00019722,2]
[349795229,1737433840853,-708.04,0.00019722,2]
[349795230,1737433840863,-1068.35,0.00019722,2]
[349795231,1737433840874,-500.0,0.00019722,2]
[349795232,1737433840884,-500.0,0.00019722,2]
[349795233,1737433840894,-500.0,0.00019722,2]
[349795234,1737433840904,-1199.12,0.00019722,2]
[349795235,1737433840914,-924.69,0.00019722,2]
[349795236,1737433840923,-500.0,0.00019722,2]
[349795238,1737433840934,-2010.2,0.00019722,2]
[349795240,1737433840944,-750.23,0.00019722,2]
[349795242,1737433840954,-500.0,0.00019722,2]
[349795244,1737433840964,-1053.1,0.00019722,2]
[349795246,1737433840974,-745.4,0.00019722,2]
[349795248,1737433840986,-500.0,0.00019723,2]
[349795250,1737433840996,-500.0,0.00019723,2]
[349795252,1737433841005,-500.0,0.00019723,2]
[349795254,1737433841015,-500.0,0.00019723,2]
[349795256,1737433841025,-500.0,0.00019723,2]
[349795258,1737433841036,-500.0,0.00019723,2]
[349795260,1737433841045,-524.07303876,0.00019723,2]
[349795262,1737433841055,-500.0,0.00019723,2]
[349795264,1737433841064,-500.0,0.00019723,2]
[349795266,1737433841075,-500.0,0.00019723,2]
[349795268,1737433841089,-500.0,0.00019723,2]
[349795270,1737433841099,-500.0,0.00019723,2]
[349795272,1737433841108,-523.3709998,0.00019723,2]
[349795274,1737433841118,-517.07822474,0.00019723,2]
[349795276,1737433841127,-500.0,0.00019723,2]
[349795278,1737433841137,-415.67494314,0.00019723,2]
[349795280,1737433841146,-530.82291635,0.00019723,2]
[349795282,1737433841155,-503.2525519,0.00019723,2]
[349795284,1737433841165,-500.0,0.00019723,2]
[349795286,1737433841175,-500.0,0.00019723,2]
[349795288,1737433841185,-500.0,0.00019723,2]
[349795290,1737433841194,-500.0,0.00019723,2]
[349795292,1737433841203,-500.0,0.00019723,2]
[349795294,1737433841213,-500.0,0.00019723,2]
[349795296,1737433841223,-500.0,0.00019723,2]
[349795298,1737433841235,-500.0,0.00019723,2]
[349795300,1737433841243,-500.0,0.00019723,2]
[349795302,1737433841253,-500.0,0.00019723,2]
[349795304,1737433841262,-186.67020234,0.00019723,2]
[349795306,1737433841271,-500.0,0.00019723,2]
[349795308,1737433841281,-500.0,0.00019723,2]
[349795310,1737433841290,-500.0,0.00019723,2]
[349795312,1737433841299,-500.0,0.00019723,2]
[349795314,1737433841309,-500.0,0.00019723,2]
[349795316,1737433841318,-500.0,0.00019723,2]
[349795318,1737433841327,-500.0,0.00019723,2]
[349795320,1737433841336,-500.0,0.00019723,2]
[349795322,1737433841346,-500.0,0.00019723,2]
[349795324,1737433841355,-500.0,0.00019723,2]